bitfinex/quotes_SOLUSD_20260103
["timestamp","ask_amount","ask_price","bid_price","bid_amount"]
[1767439792895,5.69836207,130.63,130.61,0.65910445]
[1767439793096,9.96570851,130.64,130.61,0.65910445]
[1767439793415,5.69847173,130.63,130.61,0.65910445]
[1767439793595,9.96570851,130.64,130.61,0.65910445]
[1767439793796,5.69847339,130.63,130.61,0.65910445]
[1767439794095,9.96570851,130.64,130.61,0.65910445]
[1767439794395,5.69859655,130.63,130.61,0.65910445]
[1767439794595,9.96570851,130.64,130.61,0.65910445]
[1767439794896,5.69859655,130.63,130.61,0.65910445]
[1767439795097,9.96570851,130.64,130.61,0.65910445]
[1767439795398,5.69871639,130.63,130.61,0.65910445]
[1767439795696,9.96570851,130.64,130.61,0.65910445]
[1767439795891,5.69871639,130.63,130.61,0.65910445]
[1767439796117,9.96570851,130.64,130.61,0.65910445]
[1767439796303,5.69870912,130.63,130.61,0.65910445]
[1767439796602,9.96570851,130.64,130.61,0.65910445]
[1767439796802,5.69871279,130.63,130.61,0.65910445]
[1767439797020,9.96570851,130.64,130.61,0.65910445]
[1767439797206,5.69871279,130.63,130.61,0.65910445]
[1767439797409,9.96570851,130.64,130.61,0.65910445]
[1767439797607,5.69868566,130.63,130.61,0.65910445]
[1767439797807,9.96570851,130.64,130.61,0.65910445]
[1767439798021,5.69868731,130.63,130.61,0.65910445]
[1767439798225,9.96570851,130.64,130.61,0.65910445]
[1767439798411,5.69866345,130.63,130.61,0.65910445]
[1767439798616,9.96570851,130.64,130.61,0.65910445]
[1767439798913,5.6986618,130.63,130.61,0.65910445]
[1767439799111,9.96570851,130.64,130.61,0.65910445]
[1767439799304,5.6986428,130.63,130.61,0.65910445]
[1767439799506,9.96570851,130.64,130.61,0.65910445]
[1767439799727,5.69864115,130.63,130.61,0.65910445]
[1767439800003,9.96570851,130.64,130.61,0.65910445]
[1767439800203,5.6986428,130.63,130.61,0.65910445]
[1767439800423,9.96570851,130.64,130.61,0.65910445]
[1767439800730,5.69864682,130.63,130.61,0.65910445]
[1767439800898,9.96570851,130.64,130.61,0.65910445]
[1767439801099,5.6986544,130.63,130.61,0.65910445]
[1767439801326,9.96570851,130.64,130.61,0.65910445]
[1767439801625,5.69863879,130.63,130.61,0.65910445]
[1767439801922,9.96570851,130.64,130.61,0.65910445]
[1767439802118,5.69997397,130.63,130.61,0.65910445]
[1767439802424,7.65486636,130.64,130.61,0.65910445]
[1767439802612,5.70129904,130.63,130.61,0.65910445]
[1767439802801,9.96061313,130.64,130.61,0.65910445]
[1767439803002,5.70132854,130.63,130.61,0.65910445]
[1767439803202,9.96061313,130.64,130.61,0.65910445]
[1767439803515,5.70132868,130.63,130.61,0.65910445]
[1767439803816,9.96061313,130.64,130.61,0.65910445]
[1767439804021,5.70134582,130.63,130.61,0.65910445]
[1767439804220,9.96061313,130.64,130.61,0.65910445]
[1767439804409,5.70190161,130.63,130.61,0.65910445]
[1767439804598,9.96061313,130.64,130.61,0.65910445]
[1767439804801,5.70191417,130.63,130.61,0.65910445]
[1767439804998,9.96061313,130.64,130.61,0.65910445]
[1767439805197,5.70191417,130.63,130.61,0.65910445]
[1767439805414,8.2583081,130.64,130.61,0.65910445]
[1767439805617,5.70193399,130.63,130.61,0.65910445]
[1767439805804,9.96061313,130.64,130.61,0.65910445]
[1767439806010,5.70192698,130.63,130.61,0.65910445]
[1767439806218,9.96061313,130.64,130.61,0.65910445]
[1767439806518,5.70192755,130.63,130.61,0.65910445]
[1767439806702,9.96061313,130.64,130.61,0.65910445]
[1767439806912,5.70193776,130.63,130.61,0.65910445]
[1767439807111,9.96061313,130.64,130.61,0.65910445]
[1767439807313,5.70193565,130.63,130.61,0.65910445]
[1767439807530,9.96061313,130.64,130.61,0.65910445]
[1767439807721,5.70194889,130.63,130.61,0.65910445]
[1767439807922,9.96061313,130.64,130.61,0.65910445]
[1767439808121,5.70194889,130.63,130.61,0.65910445]
[1767439808425,9.96061313,130.64,130.61,0.65910445]
[1767439808621,5.70195945,130.63,130.61,0.65910445]
[1767439808821,9.96061313,130.64,130.61,0.65910445]
[1767439809023,5.70195945,130.63,130.61,0.65910445]
[1767439809331,9.96061313,130.64,130.61,0.65910445]
[1767439809516,5.70197032,130.63,130.61,0.65910445]
[1767439809826,9.96061313,130.64,130.61,0.65910445]
[1767439810030,5.70197366,130.63,130.61,0.65910445]
[1767439810223,9.96061313,130.64,130.61,0.65910445]
[1767439810422,5.70169743,130.63,130.61,0.65910445]
[1767439810627,9.96061313,130.64,130.61,0.65910445]
[1767439810827,5.70170582,130.63,130.61,0.65910445]
[1767439811005,9.96061313,130.64,130.61,0.65910445]
[1767439811209,5.7017058,130.63,130.61,0.65910445]
[1767439811411,9.96061313,130.64,130.61,0.65910445]
[1767439811611,5.70171758,130.63,130.61,0.65910445]
[1767439811811,9.96061313,130.64,130.61,0.65910445]
[1767439812012,5.70144008,130.63,130.61,0.65910445]
[1767439812212,9.96061313,130.64,130.61,0.65910445]
[1767439812513,5.70144962,130.63,130.61,0.65910445]
[1767439812712,9.96061313,130.64,130.61,0.65910445]
[1767439812912,5.70144962,130.63,130.61,0.65910445]
[1767439813212,9.96061313,130.64,130.61,0.65910445]
[1767439813413,5.70145019,130.63,130.61,0.65910445]
[1767439813714,9.96061313,130.64,130.61,0.65910445]
[1767439814014,5.70146184,130.63,130.61,0.65910445]
[1767439814315,9.96061313,130.64,130.61,0.65910445]
[1767439814509,5.70147368,130.63,130.61,0.65910445]
[1767439814712,9.96061313,130.64,130.61,0.65910445]
[1767439814938,5.70147203,130.63,130.61,0.65910445]
[1767439815129,9.96061313,130.64,130.61,0.65910445]
[1767439815330,5.70147555,130.63,130.61,0.65910445]
[1767439815532,9.96061313,130.64,130.61,0.65910445]
[1767439815737,5.70148482,130.63,130.61,0.65910445]
[1767439815939,9.96061313,130.64,130.61,0.65910445]
[1767439816139,5.70148482,130.63,130.61,0.65910445]
[1767439816342,9.96061313,130.64,130.61,0.65910445]
[1767439816538,5.70149566,130.63,130.61,0.65910445]
[1767439816844,9.96061313,130.64,130.61,0.65910445]
[1767439817016,5.70149731,130.63,130.61,0.65910445]
[1767439817220,9.96061313,130.64,130.61,0.65910445]
[1767439817439,5.70150057,130.63,130.61,0.65910445]
[1767439817645,9.96061313,130.64,130.61,0.65910445]
[1767439817825,5.70150739,130.63,130.61,0.65910445]
[1767439818122,9.96061313,130.64,130.61,0.65910445]
[1767439818318,5.70151133,130.63,130.61,0.65910445]
[1767439818514,9.96061313,130.64,130.61,0.65910445]
[1767439818719,5.70152107,130.63,130.61,0.65910445]
[1767439818918,9.96061313,130.64,130.61,0.65910445]
[1767439819114,5.70151942,130.63,130.61,0.65910445]
[1767439819326,1.70230503,130.64,130.61,0.65910445]
[1767439819527,5.70153296,130.63,130.61,0.65910445]
[1767439819724,1.70230503,130.64,130.61,0.65910445]
[1767439819945,5.70153997,130.63,130.61,0.65910445]
[1767439820132,1.70230503,130.64,130.61,0.65910445]
[1767439820331,5.70210211,130.63,130.61,0.65910445]
[1767439820532,1.70230503,130.64,130.61,0.65910445]
[1767439820733,5.70210692,130.63,130.61,0.65910445]
[1767439821032,1.70230503,130.64,130.61,0.65910445]
[1767439821234,5.70210527,130.63,130.61,0.65910445]
[1767439821432,1.70230503,130.64,130.61,0.65910445]
[1767439821632,5.70211897,130.63,130.61,0.65910445]
[1767439821837,1.70230503,130.64,130.61,0.65910445]
[1767439822138,5.70211732,130.63,130.61,0.65910445]
[1767439822440,1.70230503,130.64,130.61,0.65910445]
[1767439822639,5.7021313,130.63,130.61,0.65910445]
[1767439822845,1.70230503,130.64,130.61,0.65910445]
[1767439823023,5.7021313,130.63,130.61,0.65910445]
[1767439823321,1.70230503,130.64,130.61,0.65910445]
[1767439823522,5.70214393,130.63,130.61,0.65910445]
[1767439823723,1.70230503,130.64,130.61,0.65910445]
[1767439824033,6.30558402,130.63,130.6,7.65689372]
[1767439824235,0.60344174,130.63,130.6,8.33150549]
[1767439826753,0.60344174,130.63,130.59,8.33216594]
[1767439827447,9.96554479,130.64,130.6,0.67461177]
[1767439827750,5.70218959,130.63,130.6,0.67461177]
[1767439827949,9.96554479,130.64,130.61,0.67461177]
[1767439828153,5.70219058,130.63,130.61,0.67461177]
[1767439828452,9.96554479,130.64,130.61,0.67461177]
[1767439828644,5.70220714,130.63,130.61,0.67461177]
[1767439828942,9.96554479,130.64,130.61,0.67461177]
[1767439829144,5.7022088,130.63,130.61,0.67461177]
[1767439829349,9.96554479,130.64,130.61,0.67461177]
[1767439829550,5.70221741,130.63,130.61,0.67461177]
[1767439829784,9.96554479,130.64,130.61,0.67461177]
[1767439830060,5.70221576,130.63,130.61,0.67461177]
[1767439830227,9.96554479,130.64,130.61,0.67461177]
[1767439830432,5.7022232,130.63,130.61,0.67461177]
[1767439830649,9.96554479,130.64,130.61,0.67461177]
[1767439830868,5.70223504,130.63,130.61,0.67461177]
[1767439831037,9.96554479,130.64,130.61,0.67461177]
[1767439831237,5.7022367,130.63,130.61,0.67461177]
[1767439831449,9.96554479,130.64,130.61,0.67461177]
[1767439831753,5.70224918,130.63,130.62,0.70311004]
[1767439834540,5.70230691,130.63,130.62,0.70311004]
[1767439842365,5.69955211,130.63,130.62,0.70311004]
[1767439846759,10.92236662,130.65,130.62,0.70311004]
[1767439846959,5.70021871,130.64,130.62,0.70311004]
[1767439847170,8.26257871,130.65,130.62,0.70311004]
[1767439847372,5.70021706,130.64,130.62,0.70311004]
[1767439847548,10.3138295,130.65,130.62,0.70311004]
[1767439847866,5.69888593,130.64,130.62,0.70311004]
[1767439848046,10.3138295,130.65,130.62,0.70311004]
[1767439848247,5.69888593,130.64,130.62,0.70311004]
[1767439848467,10.4128295,130.65,130.62,0.70311004]
[1767439848667,5.69822961,130.64,130.62,0.70311004]
[1767439848970,10.4128295,130.65,130.62,0.70311004]
[1767439849273,5.69822961,130.64,130.62,0.70311004]
[1767439849447,10.4128295,130.65,130.62,0.70311004]
[1767439849646,5.69775516,130.64,130.62,0.70311004]
[1767439849846,10.4128295,130.65,130.62,0.70311004]
[1767439850052,5.69775681,130.64,130.62,0.70311004]
[1767439850254,10.4128295,130.65,130.62,0.70311004]
[1767439850559,5.69772575,130.64,130.62,0.70311004]
[1767439850761,10.4128295,130.65,130.62,0.70311004]
[1767439850973,5.69736501,130.64,130.62,0.70311004]
[1767439851150,10.4128295,130.65,130.62,0.70311004]
[1767439851449,5.69736336,130.64,130.62,0.70311004]
[1767439851650,10.4128295,130.65,130.62,0.70311004]
[1767439851867,5.69703349,130.64,130.62,0.70311004]
[1767439852070,10.4128295,130.65,130.62,0.70311004]
[1767439852256,5.69703349,130.64,130.62,0.70311004]
[1767439852458,10.4128295,130.65,130.62,0.70311004]
[1767439852659,5.6967452,130.64,130.62,0.70311004]
[1767439852968,10.4128295,130.65,130.62,0.70311004]
[1767439853170,5.69674685,130.64,130.62,0.70311004]
[1767439853370,10.4128295,130.65,130.62,0.70311004]
[1767439853570,5.69650103,130.64,130.62,0.70311004]
[1767439853769,10.4128295,130.65,130.62,0.70311004]
[1767439853971,5.69650103,130.64,130.62,0.70311004]
[1767439854270,10.4128295,130.65,130.62,0.70311004]
[1767439854455,5.69665722,130.64,130.62,0.70311004]
[1767439854658,10.4128295,130.65,130.62,0.70311004]
[1767439854850,5.69665722,130.64,130.62,0.70311004]
[1767439855056,10.4128295,130.65,130.62,0.70311004]
[1767439855255,5.69665722,130.64,130.62,0.70311004]
[1767439855456,10.4128295,130.65,130.62,0.70311004]
[1767439855655,5.69645932,130.64,130.62,0.70311004]
[1767439855955,10.3138295,130.65,130.62,0.70311004]
[1767439856156,5.69645932,130.64,130.62,0.70311004]
[1767439856356,10.3138295,130.65,130.62,0.70311004]
[1767439856579,10.4128295,130.65,130.62,0.70311004]
[1767439857478,7.75304159,130.65,130.62,0.70311004]
[1767439857678,10.4128295,130.65,130.62,0.70311004]
[1767439863584,7.75304159,130.65,130.62,0.70311004]
[1767439863883,10.4128295,130.65,130.62,0.70311004]
[1767439865484,0.60344174,130.64,130.62,0.70311004]
[1767439868083,0.60344174,130.64,130.61,0.67016811]
[1767439868084,10.91792241,130.64,130.61,0.67016811]
[1767439868385,10.92301779,130.64,130.61,0.67016811]
[1767439868778,8.26322988,130.64,130.61,0.67016811]
[1767439868982,10.92301779,130.64,130.61,0.67016811]
[1767439871389,8.26322988,130.64,130.61,0.67016811]
[1767439879192,0.10404442,130.61,130.59,0.67016811]
[1767439880001,3.26832503,130.62,130.59,0.67016811]
[1767439880292,2.75878791,130.61,130.58,0.67016811]
[1767439880591,0.60344174,130.6,130.57,0.67016811]
[1767439882316,10.9202085,130.6,130.57,0.67016811]
[1767439882492,2.76383233,130.59,130.56,0.67016811]
[1767439882686,0.59844777,130.58,130.55,0.67016811]
[1767439884792,0.10898845,130.57,130.54,7.66041012]
[1767439884996,0.10898845,130.57,130.54,8.33057823]
[1767439885997,0.10898845,130.57,130.54,0.67016811]
[1767439886904,10.42757959,130.57,130.54,0.67016811]
[1767439887280,0.58875598,130.54,130.51,0.67016811]
[1767439887486,0.58875598,130.54,130.5,2.65978791]
[1767439889092,10.92840058,130.55,130.51,0.67016811]
[1767439889294,10.92840058,130.55,130.49,0.67016811]
[1767439889295,0.60344174,130.53,130.49,0.67016811]
[1767439889822,3.26322965,130.53,130.49,0.67016811]
[1767439890305,2.76383233,130.52,130.49,0.67016811]
[1767439891299,3.25823568,130.51,130.47,0.66888388]
[1767439891501,3.26832503,130.52,130.49,0.66888388]
[1767439891805,0.60853712,130.52,130.49,0.66888388]
[1767439899110,8.27052765,130.52,130.49,0.66888388]
[1767439901314,7.66129946,130.53,130.49,0.66888388]
[1767439901493,9.9752375,130.53,130.49,0.66888388]
[1767439901897,0.099,130.52,130.49,0.66888388]
[1767439902907,0.099,130.52,130.48,9.36940707]
[1767439906712,8.26983658,130.53,130.49,0.66888388]
[1767439906913,9.9752375,130.53,130.49,0.66888388]
[1767439908027,8.26983658,130.53,130.49,0.66888388]
[1767439914528,0.099,130.52,130.49,0.66888388]
[1767439915342,0.099,130.52,130.49,2.3742848]
[1767439915717,0.099,130.52,130.49,0.66888388]
[1767439923738,0.099,130.52,130.48,1.70540092]
[1767439924623,0.10404442,130.49,130.46,23.6242972]
[1767439924821,0.099,130.49,130.46,23.6242972]
[1767439925134,1.70540092,130.49,130.46,23.01576008]
[1767439926358,13.98,130.51,130.43,0.66335883]
[1767439926359,1.70540092,130.47,130.43,0.66335883]
[1767439926633,1.70540092,130.48,130.43,0.66335883]
[1767439926835,1.70540092,130.48,130.43,8.33010214]
[1767439927619,26.82056973,130.5,130.43,0.66335883]
[1767439927820,5.66416893,130.49,130.44,0.66335883]
[1767439928032,7.36956985,130.48,130.44,0.66335883]
[1767439928225,9.36951823,130.48,130.44,0.66335883]
[1767439928746,1.70540092,130.47,130.42,8.3308349]
[1767439929147,1.70540092,130.46,130.42,7.66747607]
[1767439929849,9.37076333,130.46,130.43,0.66335883]
[1767439930145,1.70540092,130.46,130.43,0.66335883]
[1767439930354,0.70540092,130.46,130.43,0.66335883]
[1767439930525,13.98,130.48,130.43,0.66335883]
[1767439930733,1.70540092,130.46,130.43,0.66335883]
[1767439931245,9.37068417,130.46,130.43,0.66335883]
[1767439933549,21.64446022,130.48,130.43,0.66335883]
[1767439933848,5.66990688,130.47,130.44,0.66335883]
[1767439934032,23.34986114,130.48,130.44,0.66335883]
[1767439934232,23.34986114,130.48,130.45,0.66335883]
[1767439934734,7.6622481,130.51,130.45,0.66335883]
[1767439934933,5.66955575,130.5,130.46,0.66335883]
[1767439935142,19.16947227,130.52,130.46,0.66335883]
[1767439935143,1.70540092,130.51,130.47,0.66335883]
[1767439935340,13.98,130.53,130.47,0.66335883]
[1767439935341,1.70540092,130.52,130.47,0.66335883]
[1767439935551,5.67074116,130.51,130.48,0.66335883]
[1767439935750,15.68540092,130.53,130.48,0.66335883]
[1767439935952,5.67101154,130.52,130.48,0.66335883]
[1767439936251,5.67101154,130.51,130.49,0.66335883]
[1767439936451,7.66167053,130.52,130.49,0.66335883]
[1767439937931,9.36707145,130.52,130.49,0.66335883]
[1767439939350,7.66167053,130.52,130.49,0.66335883]
[1767439943258,21.64129779,130.53,130.49,0.66335883]
[1767439943463,5.672371,130.52,130.49,0.66335883]
[1767439943762,21.64129779,130.53,130.49,0.66335883]
[1767439943966,5.67236936,130.52,130.49,0.66335883]
[1767439944268,21.64129779,130.53,130.49,0.66335883]
[1767439944441,5.67256841,130.52,130.49,0.66335883]
[1767439944641,13.98,130.53,130.5,0.66335883]
[1767439945259,5.67334887,130.52,130.5,0.66335883]
[1767439945563,13.98,130.53,130.5,0.66335883]
[1767439946062,5.6734377,130.52,130.5,0.66335883]
[1767439946270,13.98,130.53,130.5,0.66335883]
[1767439946432,5.67388399,130.52,130.5,0.66335883]
[1767439946640,13.98,130.53,130.5,0.66335883]
[1767439946948,5.67388399,130.52,130.5,0.66335883]
[1767439947150,13.98,130.53,130.5,0.66335883]
[1767439947461,5.6741168,130.52,130.5,0.66335883]
[1767439947642,9.3659349,130.54,130.5,0.66335883]
[1767439947846,5.67406428,130.53,130.5,0.66335883]
[1767439948054,5.67406428,130.52,130.5,0.66335883]
[1767439948361,9.3659349,130.54,130.5,0.66335883]
[1767439948566,5.67423802,130.53,130.5,0.66335883]
[1767439948744,5.67423802,130.52,130.5,0.66335883]
[1767439948946,9.3659349,130.54,130.5,0.66335883]
[1767439949272,5.67423802,130.53,130.5,0.66335883]
[1767439949564,5.67423802,130.52,130.5,0.66335883]
[1767439949767,9.3659349,130.54,130.5,0.66335883]
[1767439949944,5.67442488,130.53,130.5,0.66335883]
[1767439950146,5.67442488,130.52,130.5,0.66335883]
[1767439950344,9.3659349,130.54,130.5,0.66335883]
[1767439950569,5.67461386,130.53,130.5,0.66335883]
[1767439950868,5.67461386,130.52,130.5,0.66335883]
[1767439951071,9.3659349,130.54,130.5,0.66335883]
[1767439951247,5.67482558,130.53,130.5,0.66335883]
[1767439951563,5.67482558,130.52,130.5,0.66335883]
[1767439951755,9.3659349,130.54,130.5,0.66335883]
[1767439951954,5.67403003,130.53,130.5,0.66335883]
[1767439952162,5.67403003,130.52,130.5,0.66335883]
[1767439952372,9.3659349,130.54,130.5,0.66335883]
[1767439952655,5.67425014,130.53,130.5,0.66335883]
[1767439952956,5.67425014,130.52,130.5,0.66335883]
[1767439953150,9.3659349,130.54,130.5,0.66335883]
[1767439953350,5.67445128,130.53,130.5,0.66335883]
[1767439953552,5.67445128,130.52,130.5,0.66335883]
[1767439953853,9.3659349,130.54,130.5,0.66335883]
[1767439954052,5.67446496,130.53,130.5,0.66335883]
[1767439954254,5.67446496,130.52,130.5,0.66335883]
[1767439954464,7.66053398,130.54,130.5,0.66335883]
[1767439954667,5.67467434,130.53,130.5,0.66335883]
[1767439954844,22.35156286,130.55,130.5,7.66274032]
[1767439955049,0.71143129,130.54,130.5,7.66274032]
[1767439955248,0.71143129,130.54,130.5,9.36814124]
[1767439955444,0.71143129,130.54,130.51,0.68859031]
[1767439955765,8.37193289,130.54,130.51,0.68859031]
[1767439964397,8.37193289,130.54,130.52,0.68859031]
[1767439967798,0.71143129,130.54,130.52,0.68859031]
[1767439972879,14.69143129,130.55,130.52,0.68859031]
[1767439980710,22.35137002,130.55,130.52,0.68859031]
[1767439988937,14.69143129,130.55,130.52,0.68859031]
[1767439993432,14.69143129,130.55,130.52,3.35215299]
[1767439998143,22.35139317,130.55,130.52,0.68859031]
[1767440004734,0.70526944,130.54,130.52,0.68859031]
[1767440023853,0.58226943,130.54,130.52,0.68859031]
[1767440026770,0.58226943,130.54,130.51,9.36662667]
[1767440028342,0.58226943,130.54,130.51,1.70445115]
[1767440029244,0.58226943,130.54,130.51,9.36643045]
[1767440029559,0.58226943,130.54,130.51,10.08111035]
[1767440030567,0.683967,130.54,130.51,8.3766592]
[1767440030941,0.683967,130.54,130.51,10.08111035]
[1767440031774,8.34392888,130.55,130.52,0.7146799]
[1767440036671,0.683967,130.55,130.52,0.7146799]
[1767440056686,8.34390985,130.55,130.52,0.7146799]
[1767440057490,0.71099312,130.54,130.52,0.7146799]
[1767440064496,0.71099312,130.54,130.51,7.6619793]
[1767440065092,0.7088468,130.53,130.5,9.36706889]
[1767440066102,0.7088468,130.53,130.5,7.66261774]
[1767440066875,0.7088468,130.53,130.5,9.36706889]
[1767440067076,0.7088468,130.53,130.5,10.07650745]
[1767440067373,0.71099312,130.54,130.51,0.70943856]
[1767440071082,0.71099312,130.54,130.5,9.36706889]
[1767440071493,0.71099312,130.54,130.51,0.65703655]
[1767440082111,0.71099312,130.54,130.5,10.32603267]
[1767440082313,0.71099312,130.54,130.5,10.98306922]
[1767440082620,0.66919624,130.53,130.5,10.98306922]
[1767440082824,0.66919624,130.53,130.51,0.65703655]
[1767440085228,8.33039764,130.53,130.49,7.66335925]
[1767440085518,3.33261117,130.52,130.47,2.66341493]
[1767440086011,0.66919624,130.52,130.47,2.66341493]
[1767440086315,0.66919624,130.52,130.47,10.32749323]
[1767440087119,0.66919624,130.51,130.47,2.66341493]
[1767440087290,0.66919624,130.5,130.47,0.65703655]
[1767440087619,8.33174448,130.51,130.47,0.65703655]
[1767440087802,8.33174448,130.51,130.47,3.32045148]
[1767440088001,8.33174448,130.51,130.48,0.65703655]
[1767440091007,0.66919624,130.5,130.47,10.98499375]
[1767440091327,0.66919624,130.5,130.47,10.3279572]
[1767440091521,0.66919624,130.49,130.46,21.64495453]
[1767440091724,7.66295049,130.5,130.47,0.65703655]
[1767440091926,8.33214673,130.5,130.47,0.65703655]
[1767440092233,0.66919624,130.5,130.47,0.65703655]
[1767440092442,0.66919624,130.5,130.46,10.98540601]
[1767440094327,0.66919624,130.5,130.47,7.66446373]
[1767440096934,0.66919624,130.5,130.47,8.32150028]
[1767440100860,0.66919624,130.5,130.47,10.98491521]
[1767440101158,0.66639311,130.52,130.49,0.67650031]
[1767440102051,22.30770449,130.53,130.5,0.67650031]
[1767440102959,14.64639311,130.53,130.5,0.67650031]
[1767440103662,0.66639311,130.54,130.51,0.67650031]
[1767440106442,0.66639311,130.54,130.51,8.33865791]
[1767440108282,0.66639311,130.54,130.52,0.67650031]
[1767440108475,22.30631446,130.55,130.52,0.67650031]
[1767440108677,0.66639311,130.54,130.52,0.67650031]
[1767440111883,0.66639311,130.54,130.51,10.32557253]
[1767440114190,0.66639311,130.54,130.52,0.67650031]
[1767440116392,22.30631446,130.55,130.52,0.67650031]
[1767440117568,0.66639311,130.54,130.52,0.67650031]
[1767440119392,21.63992135,130.55,130.52,0.67650031]
[1767440119598,22.30631446,130.55,130.52,0.67650031]
[1767440123593,0.66639311,130.54,130.51,10.32557253]
[1767440123896,0.66639311,130.54,130.51,2.66341493]
[1767440123897,0.66639311,130.53,130.51,2.66341493]
[1767440124801,0.66639311,130.54,130.51,3.33991524]
[1767440140525,0.66639311,130.54,130.51,2.38111392]
[1767440145625,0.66639311,130.54,130.51,0.67650031]
[1767440157929,0.66639311,130.54,130.51,8.33873124]
[1767440170026,13.98,130.55,130.52,0.67151234]
[1767440170228,2.36977878,130.58,130.53,0.67151234]
[1767440170444,0.66516517,130.57,130.54,0.67151234]
[1767440178151,0.66516517,130.57,130.55,0.67151234]
[1767440178332,14.64516517,130.58,130.55,0.67151234]
[1767440180345,0.66516517,130.57,130.55,0.67151234]
[1767440185263,0.66516517,130.57,130.54,8.33190285]
[1767440185447,0.66516517,130.57,130.54,10.03651646]
[1767440186149,0.66516517,130.57,130.54,9.36500412]
[1767440186361,0.66516517,130.57,130.55,0.67151234]
[1767440191565,13.98,130.58,130.56,0.6761409]
[1767440191735,14.64851529,130.58,130.56,0.6761409]
[1767440194265,14.64851529,130.58,130.55,8.33576803]
[1767440194453,13.98,130.58,130.56,0.6761409]
[1767440194652,14.64851529,130.58,130.56,0.6761409]
[1767440196064,14.64851529,130.58,130.56,0.64550252]
[1767440197071,14.64851529,130.58,130.53,20.85654898]
[1767440197366,14.64851529,130.58,130.54,1.70461361]
[1767440197973,14.64851529,130.58,130.55,0.6761409]
[1767440198269,14.64851529,130.58,130.55,8.33592208]
[1767440198649,0.66851529,130.58,130.55,8.33592208]
[1767440205276,0.66851529,130.58,130.55,10.99801017]
[1767440207074,0.66851529,130.58,130.55,8.33592208]
[1767440207266,0.66851529,130.58,130.55,10.99801017]
[1767440208293,0.66851529,130.58,130.55,8.33592208]
[1767440209397,21.63771534,130.59,130.56,0.6761409]
[1767440209576,22.32148391,130.59,130.56,0.6761409]
[1767440210293,0.68376857,130.58,130.56,0.6761409]
[1767440215416,22.32148391,130.59,130.56,0.6761409]
[1767440215614,14.66376857,130.59,130.56,0.6761409]
[1767440216618,0.68376857,130.58,130.56,0.6761409]
[1767440216830,0.68376857,130.58,130.56,8.33537948]
[1767440217008,14.66376857,130.59,130.56,8.33537948]
[1767440217512,0.68376857,130.58,130.56,8.33537948]
[1767440217723,0.68376857,130.6,130.57,0.6761409]
[1767440217890,0.68376857,130.61,130.58,0.6761409]
[1767440221132,0.68376857,130.61,130.59,0.65537696]
[1767440221299,14.65910689,130.62,130.59,0.65537696]
[1767440221628,0.67910689,130.62,130.59,0.65537696]
[1767440222634,0.67910689,130.62,130.59,8.31269262]
[1767440222817,0.67910689,130.62,130.6,0.65537696]
[1767440224135,14.65910689,130.63,130.6,0.65537696]
[1767440224308,14.65910689,130.63,130.6,8.31233777]
[1767440224515,14.65910689,130.63,130.61,0.65537696]
[1767440225040,0.67910689,130.62,130.6,0.65537696]
[1767440226538,17.32119498,130.63,130.6,0.65537696]
[1767440227021,14.65910689,130.63,130.6,0.65537696]
[1767440227222,0.67910689,130.62,130.6,0.65537696]
[1767440227646,0.67910689,130.62,130.6,8.31234187]
[1767440231654,0.67910689,130.64,130.61,0.65537696]
[1767440233257,0.67910689,130.65,130.62,0.65537696]
[1767440233561,0.67910689,130.65,130.62,0.62475138]
[1767440234260,19.13294478,130.71,130.64,2.66208809]
[1767440234443,0.67910689,130.72,130.67,2.66208809]
[1767440234772,3.34119498,130.71,130.65,2.66208809]
[1767440234945,0.67910689,130.68,130.63,2.66208809]
[1767440235146,3.34119498,130.67,130.62,2.66208809]
[1767440235351,3.34119498,130.67,130.64,0.65537696]
[1767440235566,0.67910689,130.67,130.64,0.65537696]
[1767440235754,10.99387562,130.68,130.64,0.65537696]
[1767440235955,0.67910689,130.67,130.64,0.65537696]
[1767440236553,0.67910689,130.68,130.65,0.65537696]
[1767440236757,0.67910689,130.68,130.65,3.31746505]
[1767440237863,0.67910689,130.68,130.65,0.65537696]
[1767440240868,0.67910689,130.67,130.63,8.31043201]
[1767440241068,0.67910689,130.66,130.63,10.31714314]
[1767440241366,0.5953005,130.65,130.62,7.65567537]
[1767440242180,3.25738859,130.66,130.62,8.31105233]
[1767440242361,2.76108809,130.65,130.62,0.65537696]
[1767440242562,0.099,130.65,130.62,0.65537696]
[1767440243082,0.59033749,130.64,130.61,7.65615958]
[1767440243284,0.59033749,130.64,130.61,10.97362463]
[1767440244881,0.59033749,130.64,130.61,8.31153654]
[1767440245866,0.59033749,130.64,130.61,7.65615958]
[1767440247771,0.59033749,130.64,130.6,10.97433807]
[1767440247972,10.91149313,130.65,130.61,0.65537696]
[1767440261421,9.59119263,130.65,130.6,10.31896111]
[1767440261627,0.70858219,130.69,130.63,2.66208809]
[1767440261926,3.37067028,130.69,130.63,2.66208809]
[1767440262635,2.40984754,130.69,130.63,1.70126535]
[1767440262814,2.40984754,130.69,130.63,7.65516485]
[1767440262815,29.19149878,130.69,130.63,7.65516485]
[1767440263322,29.19149878,130.69,130.63,9.3564302]
[1767440263705,29.19149878,130.69,130.63,7.65516485]
[1767440264203,0.70858219,130.73,130.67,1.70126535]